fUST/lending_fUST_20240712
["ID","MTS","AMOUNT","RATE_DAILY","PERIOD"]
[331833043,1720776565428,-673.98607468,0.00017499,2]
[331833045,1720776590392,-1130.57070571,0.00017499,2]
[331833046,1720776590451,-865.4067841,0.00017499,2]
[331833119,1720776640197,-15217.51505908,0.00017499,2]
[331833120,1720776640208,-456.4427614,0.00017639,2]
[331833121,1720776640218,-553.28132,0.00017892,2]
[331833122,1720776640227,-654.00019149,0.000179,2]
[331833123,1720776640237,-206.22512368,0.000179,2]
[331833124,1720776640246,-48079.5784236,0.0001799,2]
[331833125,1720776640256,-100000.0,0.00018,2]
[331833126,1720776640266,-1194.64156037,0.00018182,2]
[331833127,1720776640275,-1194.64156037,0.00018182,2]
[331833128,1720776640285,-161.078672,0.00019587,2]
[331833129,1720776640296,-48079.5784236,0.0001999,2]
[331833130,1720776640306,-30963.15075967,0.0002,2]
[331833131,1720776640316,-199.98201091,0.0002,2]
[331833132,1720776640325,-31803.28731087,0.0002,2]
[331833133,1720776640335,-4234.35309731,0.0002066,7]
[331833134,1720776640344,-285.0,0.00021,2]
[331833135,1720776640354,-500.0,0.00021,2]
[331833136,1720776640364,-386.494761,0.00021096,2]
[331833137,1720776640375,-654.00019144,0.00021614,2]
[331833138,1720776640385,-500.0,0.00022,2]
[331833139,1720776640395,-151.0,0.00022055,2]
[331833140,1720776640405,-151.0,0.00022399,2]
[331833141,1720776640414,-151.0,0.00022744,2]
[331833142,1720776640424,-154.63660398,0.00022943,2]
[331833143,1720776640434,-500.0,0.00023,2]
[331833144,1720776640444,-151.0,0.00023088,2]
[331833145,1720776640454,-151.0,0.00023433,2]
[331833146,1720776640464,-151.0,0.00023777,2]
[331833147,1720776640476,-503.0,0.00023791,2]
[331833148,1720776640486,-184.06113769,0.00023968,2]
[331833149,1720776640495,-297.3621291,0.00023968,2]
[331833150,1720776640505,-500.0,0.00024,2]
[331833151,1720776640515,-1000.0,0.00024,2]
[331833152,1720776640525,-151.0,0.00024122,2]
[331833154,1720776640535,-300.0,0.00024373,2]
[331833155,1720776640550,-151.0,0.00024466,2]
[331833156,1720776640560,-1625.91056721,0.0002448,3]
[331833157,1720776640570,-375.00206261,0.00024481,2]
[331833158,1720776640580,-151.0,0.00024811,2]
[331833159,1720776640589,-5064.6334287,0.00024987,2]
[331833160,1720776640598,-297.20074816,0.00024989,2]
[331833161,1720776640608,-510.04103303,0.00024989,2]
[331833162,1720776640619,-500.0,0.00024989,2]
[331833163,1720776640628,-301.32138885,0.00024989,2]
[331833164,1720776640638,-500.0,0.00024989,2]
[331833165,1720776640647,-247.10722546,0.00024989,2]
[331833166,1720776640657,-500.0,0.00024989,2]
[331833167,1720776640667,-500.0,0.00024989,2]
[331833168,1720776640677,-500.0,0.00024989,2]
[331833169,1720776640687,-605.30746133,0.00024989,2]
[331833170,1720776640697,-500.0,0.00024989,2]
[331833171,1720776640706,-500.0,0.00024989,2]
[331833172,1720776640716,-500.0,0.00024989,2]
[331833173,1720776640725,-500.0,0.00024989,2]
[331833174,1720776640735,-500.0,0.00024989,2]
[331833175,1720776640744,-216.51875171,0.00024989,2]
[331833176,1720776640754,-500.0,0.00024989,2]
[331833177,1720776640763,-500.0,0.00024989,2]
[331833178,1720776640772,-500.0,0.00024989,2]
[331833179,1720776640781,-500.0,0.00024989,2]
[331833180,1720776640792,-521.85856384,0.00024989,2]
[331833181,1720776640801,-500.0,0.00024989,2]
[331833182,1720776640811,-500.0,0.00024989,2]
[331833183,1720776640820,-569.69416724,0.00024989,2]
[331833184,1720776640830,-500.0,0.00024989,2]
[331833185,1720776640839,-500.0,0.00024989,2]
[331833186,1720776640849,-500.0,0.00024989,2]
[331833187,1720776640858,-500.0,0.00024989,2]
[331833188,1720776640867,-600.0,0.00024989,2]
[331833189,1720776640877,-500.0,0.00024989,2]
[331833190,1720776640886,-500.0,0.00024989,2]
[331833191,1720776640895,-500.0,0.00024989,2]
[331833192,1720776640905,-573.29322346,0.00024989,2]
[331833193,1720776640915,-500.0,0.00024989,2]
[331833194,1720776640924,-500.0,0.00024989,2]
[331833195,1720776640934,-500.0,0.00024989,2]
[331833196,1720776640944,-500.0,0.00024989,2]
[331833197,1720776640953,-500.0,0.00024989,2]
[331833198,1720776640963,-48079.5784236,0.0002499,3]
[331833199,1720776640973,-1000.0,0.00025,25]
[331833200,1720776640982,-260.51865148,0.00025,2]
[331833201,1720776640992,-8690.34222749,0.00025,2]
[331833224,1720776643482,-9699.57138625,0.00025,2]
[331833225,1720776643495,-3318.01082722,0.00025,2]
[331833226,1720776643506,-500.0,0.00025,2]
[331833227,1720776643515,-151.0,0.00025155,2]
[331833228,1720776643525,-48079.5784236,0.00025194,3]
[331833229,1720776643535,-15563.78184947,0.00025204,2]
[331833318,1720776669451,1194.64156037,0.00016255,2]
[331833325,1720776845291,1625.91056721,0.00016255,2]
[331833328,1720776891997,184.06113769,0.00016255,2]
[331833329,1720776892299,297.3621291,0.00016255,2]
[331833330,1720776933982,345.78236275,0.00016255,2]
[331833340,1720777065832,1574.40442678,0.00016255,2]
[331833342,1720777116745,6632.81156889,0.00016255,2]
[331833344,1720777132985,345.78236275,0.00016255,2]
[331833357,1720777355996,345.78236275,0.00016255,2]
[331833358,1720777356567,812.66873806,0.00016255,2]
[331833373,1720777652632,345.78236275,0.00016255,2]
[331833381,1720777763793,-352.62479267,0.000178,2]
[331833475,1720777839017,345.78236275,0.00016255,2]
[331833509,1720777840492,-52.02800216,0.000178,2]
[331833510,1720777840501,-572.25016751,0.000179,2]
[331833512,1720777840511,-43271.6205812,0.0001799,2]
[331833513,1720777840521,-100000.0,0.00018,2]
[331833515,1720777840530,-276.64066,0.00018508,2]
[331833517,1720777840540,-318.92327881,0.00019703,2]
[331833519,1720777840549,-2129.18009702,0.00019703,2]
[331833520,1720777840559,-30963.15075967,0.0002,2]
[331833522,1720777840569,-294.58996855,0.0002,2]
[331833523,1720777840579,-285.0,0.00021,2]
[331833524,1720777840588,-386.494761,0.00021096,2]
[331833526,1720777840598,-790.77511278,0.00021575,2]
[331833528,1720777840608,-155.92607618,0.00021575,2]
[331833529,1720777840618,-662.60273561,0.00021575,2]
[331833530,1720777840628,-572.25016751,0.00021614,2]
[331833531,1720777840637,-151.0,0.00022231,2]
[331833532,1720777840647,-151.0,0.00022594,2]
[331833533,1720777840656,-151.0,0.00022957,2]
[331833534,1720777840666,-151.0,0.0002332,2]
[331833535,1720777840779,-151.0,0.00023684,2]
[331833536,1720777840789,-154.63660398,0.00023966,2]
[331833537,1720777840799,-492.90786688,0.00023966,2]
[331833538,1720777840814,-154.63660398,0.00023968,2]
[331833539,1720777840823,-151.0,0.00024047,2]
[331833540,1720777840833,-150.711,0.00024091,2]
[331833541,1720777840843,-503.0,0.00024091,2]
[331833542,1720777840853,-150.183,0.00024091,2]
[331833543,1720777840864,-151.0,0.0002441,2]
[331833544,1720777840874,-151.0,0.00024773,2]
[331833545,1720777840885,-300.0,0.00024827,2]
[331833546,1720777840895,-260.51865148,0.00025,2]
[331833547,1720777840904,-3318.01082722,0.00025,2]
[331833548,1720777840914,-151.0,0.00025137,2]
[331833549,1720777840923,-18367.1974282,0.00025172,3]
[331833695,1720778403349,156.2,0.00024,60]
[331833700,1720778758458,154.63660398,0.00016255,2]
[331833701,1720778769465,154.63660398,0.00016255,2]
[331833702,1720778803152,-212.04311936,0.00018,2]
[331833710,1720778958191,154.63660398,0.00016255,2]
[331833785,1720779032673,-524.58484553,0.00018,2]
[331833859,1720779039720,-18393.8506163,0.00018,2]
[331833906,1720779044153,-63504.50427294,0.00018,2]
[331833907,1720779044560,-11804.24041169,0.00018,2]
[331833908,1720779044569,-6441.79530692,0.00018899,2]
[331833909,1720779044579,-386.494761,0.00021096,2]
[331833910,1720779044589,-405.714011,0.00021582,2]
[331833911,1720779044599,-294.58996855,0.00021818,2]
[331833912,1720779044608,-213.78692114,0.00021818,2]
[331833913,1720779044618,-151.0,0.0002215,2]
[331833914,1720779044628,-151.0,0.00022522,2]
[331833915,1720779044638,-151.0,0.00022895,2]
[331833916,1720779044647,-151.0,0.00023267,2]
[331833917,1720779044657,-2129.18009702,0.00023453,2]
[331833918,1720779044667,-151.0,0.00023639,2]
[331833919,1720779044676,-790.77511278,0.00023966,2]
[331833920,1720779044686,-2560.89561156,0.00023966,2]
[331833921,1720779044696,-4290.38307161,0.0002399,3]
[331833922,1720779044833,-418.49506118,0.0002399,3]
[331833923,1720779044844,-305.0,0.0002399,3]
[331833949,1720779046980,-569.64,0.0002399,3]
[331833966,1720779483479,662.60273561,0.00016255,2]
[331833976,1720779550240,154.63660398,0.00016255,2]
[331833981,1720779738369,154.62117811,0.00016255,2]
[331833984,1720779797480,548.83384771,0.00016255,2]
[331833989,1720779856383,212.02110912,0.00016255,2]
[331833992,1720779889477,318.92327881,0.00016255,2]
[331834001,1720779979891,32081.43724999,0.00015,2]
[331834002,1720779979918,167918.56275001,0.00015,2]
[331834003,1720779981872,154.62117811,0.00016255,2]
[331834007,1720780006420,200000.0,0.00015,3]
[331834013,1720780040145,345.78236275,0.00016255,2]
[331834021,1720780082310,210.0,0.00025,120]
[331834025,1720780108988,188.0,0.0002,120]
[331834026,1720780115894,294.36734566,7e-05,120]
[331834027,1720780116310,492.90786688,0.00016255,2]
[331834028,1720780123624,500.41743277,0.00021,120]
[331834029,1720780123896,306.90915322,0.0002522,120]
[331834032,1720780128827,317.49365246,0.00025,120]
[331834033,1720780142716,155.92607618,0.00016255,2]
[331834035,1720780193747,-1068.59166583,0.000176,2]
[331834051,1720780234011,-914.73470879,0.000176,2]
[331834053,1720780234021,-243.84216829,0.00018899,2]
[331834055,1720780234031,-394.58478293,0.00018899,2]
[331834057,1720780234042,-197.30576581,0.00019703,2]
[331834058,1720780234053,-21.33678798,0.00019999,2]
[331834108,1720780238557,-154.63660398,0.00019165,2]
[331834110,1720780238567,-278.66321202,0.00019999,2]
[331834112,1720780238577,-154.63660398,0.0002,2]
[331834114,1720780238590,-31803.28731087,0.0002,2]
[331834116,1720780238599,-303.59313287,0.0002,2]
[331834119,1720780238610,-617.13818699,0.00020443,2]
[331834121,1720780238620,-4234.35309731,0.0002066,7]
[331834134,1720780238751,-500.0,0.00021,2]
[331834136,1720780238761,-285.0,0.00021095,2]
[331834138,1720780238770,-399.985705,0.00021096,2]
[331834140,1720780238781,-1115.4905678,0.00021608,2]
[331834142,1720780238790,-202.857006,0.00021642,2]
[331834144,1720780238800,-248.0,0.00021999,2]
[331834146,1720780238810,-500.0,0.00022,2]
[331834148,1720780238820,-178.571429,0.00022014,2]
[331834150,1720780238830,-178.571429,0.00022206,2]
[331834152,1720780238840,-178.571429,0.00022397,2]
[331834153,1720780238850,-178.571429,0.00022588,2]
[331834154,1720780238859,-178.571429,0.00022779,2]
[331834155,1720780238869,-300.0,0.00022836,2]
[331834156,1720780238878,-178.571429,0.0002297,2]
[331834157,1720780238888,-500.0,0.00023,2]
[331834158,1720780238898,-178.571429,0.00023162,2]
[331834159,1720780238909,-166.24745907,0.00023778,2]
[331834160,1720780238921,-450.89072789,0.00023778,2]
[331834161,1720780238931,-375.00206261,0.00023968,2]
[331834162,1720780238941,-375.00206261,0.00023968,2]
[331834163,1720780238950,-151.0,0.00023988,2]
[331834164,1720780238960,-264.69134899,0.0002399,2]
[331834165,1720780238975,-30963.15075967,0.0002399,7]
[331834166,1720780238985,-500.0,0.00024,2]
[331834167,1720780238994,-150.0,0.00024091,2]
[331834168,1720780239004,-150.0,0.00024091,2]
[331834169,1720780239015,-151.0,0.00024366,2]
[331834170,1720780239024,-150.711,0.00024488,2]
[331834171,1720780239034,-503.0,0.00024488,2]
[331834172,1720780239043,-151.0,0.00024744,2]
[331834173,1720780239053,-153.0,0.00024795,2]
[331834174,1720780239063,-153.0,0.00024795,2]
[331834175,1720780239075,-153.0,0.00024795,2]
[331834176,1720780239085,-153.0,0.00024795,2]
[331834177,1720780239095,-153.0,0.00024795,2]
[331834178,1720780239105,-309.9059119,0.00024795,2]
[331834179,1720780239114,-254.59897943,0.00024986,2]
[331834180,1720780239124,-5064.6334287,0.00024987,2]
[331834181,1720780239133,-716.86,0.0002499,3]
[331834182,1720780239142,-5048.01,0.0002499,3]
[331834183,1720780239152,-6427.8,0.0002499,3]
[331834184,1720780239161,-3318.01082722,0.00025,2]
[331834185,1720780239171,-1000.0,0.00025,25]
[331834186,1720780239180,-199.9820119,0.00025,2]
[331834187,1720780239190,-3529.02,0.00025,2]
[331834188,1720780239199,-8690.34222749,0.00025,2]
[331834189,1720780239209,-260.51865148,0.00025094,2]
[331834190,1720780239223,-151.0,0.00025122,2]
[331834191,1720780239232,-238.95,0.00025144,3]
[331834192,1720780239241,-154.62117911,0.00025149,2]
[331834193,1720780239250,-1032.0,0.00025172,62]
[331834194,1720780239259,-150.5,0.00025172,62]
[331834195,1720780239269,-167.0,0.00025172,62]
[331834196,1720780239278,-1032.0,0.00025182,62]
[331834197,1720780239287,-150.5,0.00025182,62]
[331834198,1720780239297,-167.0,0.00025182,62]
[331834199,1720780239306,-161.31,0.00025182,62]
[331834200,1720780239316,-1032.0,0.00025192,62]
[331834201,1720780239325,-167.0,0.00025192,62]
[331834202,1720780239334,-150.5,0.00025192,62]
[331834203,1720780239344,-150.5,0.00025192,62]
[331834204,1720780239354,-15961.97711527,0.00025204,2]
[331834297,1720780247105,-375.00206261,0.00023966,2]
[331834298,1720780247115,-5356.5,0.0002499,3]
[331834299,1720780247125,-11740.21843636,0.00025204,2]
[331834306,1720780319700,300.0,0.00014829,2]
[331834334,1720780412802,1860.19687074,0.00016255,2]
[331834381,1720780848362,167.17440059,0.0001,10]
[331834546,1720781438292,-202.289234,0.000189,2]
[331834547,1720781438302,-379.986419,0.00021096,2]
[331834548,1720781438312,-373.72649179,0.00022943,2]
[331834549,1720781438322,-202.289234,0.000239,2]
[331834550,1720781438331,-161.681817,0.00024005,2]
[331834551,1720781438341,-250.0,0.00024108,2]
[331834552,1720781438352,-202.8570067,0.00024114,2]
[331834553,1720781438362,-166.666666,0.00024288,2]
[331834554,1720781438371,-166.666666,0.00024541,2]
[331834555,1720781438380,-153.0,0.00024658,2]
[331834556,1720781438389,-153.0,0.00024658,2]
[331834557,1720781438399,-153.0,0.00024658,2]
[331834558,1720781438408,-153.0,0.00024658,2]
[331834559,1720781438418,-306.8236652,0.00024658,2]
[331834560,1720781438427,-166.666666,0.00024794,2]
[331834561,1720781438437,-150.0,0.00024897,2]
[331834562,1720781438447,-503.0,0.00024897,2]
[331834563,1720781438456,-150.183,0.00024897,2]
[331834564,1720781438466,-300.0,0.00024999,2]
[331834565,1720781438475,-1561.12187281,0.00025,2]
[331834688,1720781453448,1484.83082982,0.00012121,2]
[331834698,1720781624611,9621.97492075,0.00014692,2]
[331834714,1720781933452,532.49,0.0002525,120]
[331834837,1720782632182,-360.987098,0.00021096,2]
[331834839,1720782632192,-123.84373182,0.0002315,2]
[331834842,1720782632204,-26.15626818,0.0002315,2]
[331834844,1720782632214,-166.666666,0.00024052,2]
[331834846,1720782632224,-807.17706582,0.00024226,2]
[331834946,1720782643119,-2793.83600105,0.00024226,2]
[331834955,1720782643368,-449.55502173,0.00024226,2]
[331834956,1720782643379,-166.666666,0.00024679,2]
[331834957,1720782643390,-150.0,0.00024897,2]
[331834958,1720782643401,-150.0,0.00024897,2]
[331834959,1720782643411,-503.0,0.00024897,2]
[331834960,1720782643420,-900.25048691,0.00025,2]
[331835031,1720782646290,-856.6384675,0.00025,2]
[331835032,1720782646304,-260.51865148,0.0002511,2]
[331835033,1720782646315,-300.0,0.0002512,2]
[331835034,1720782646324,-20.94288102,0.000252,2]
[331835282,1720785031749,150.5,0.0002399,62]
[331835294,1720785032016,150.5,0.0002399,62]
[331835297,1720785032220,723.0,0.0002399,62]
[331835306,1720785032291,150.5,0.0002399,62]
[331835314,1720785032395,150.5,0.0002398,62]
[331835316,1720785032489,150.5,0.0002398,62]
[331835319,1720785033209,723.0,0.0002398,62]
[331835320,1720785033428,150.5,0.0002397,62]
[331835321,1720785033658,150.5,0.0002398,62]
[331835322,1720785033715,723.0,0.0002397,62]
[331835323,1720785033964,150.5,0.0002397,62]
[331835324,1720785034016,185.87,0.0002397,62]
[331835325,1720785034309,285.55215918,0.0002525,120]
[331835326,1720785034506,151.0,0.0002399,62]
[331835327,1720785035053,151.0,0.0002398,62]
[331835328,1720785035574,151.0,0.0002397,62]
[331835367,1720785040678,-10137.92853794,0.00021094,5]
[331835368,1720785040688,-300.0,0.00021094,2]
[331835369,1720785040698,-342.937743,0.00021096,2]
[331835370,1720785040708,-2504.5398363,0.00022545,2]
[331835371,1720785040720,-166.666666,0.00022829,2]
[331835372,1720785040731,-500.0,0.00023274,2]
[331835373,1720785040740,-215.31,0.00023274,2]
[331835374,1720785040750,-500.0,0.00023411,2]
[331835375,1720785040760,-151.0,0.00023594,7]
[331835376,1720785040768,-223.872873,0.00023594,7]
[331835377,1720785040778,-223.872873,0.00023594,7]
[331835378,1720785040789,-716.689709,0.00023594,7]
[331835379,1720785040798,-716.689709,0.00023594,7]
[331835380,1720785040807,-151.0,0.00023594,7]
[331835381,1720785040816,-151.0,0.00023594,7]
[331835382,1720785040825,-151.0,0.00023594,7]
[331835383,1720785040835,-151.0,0.00023594,7]
[331835384,1720785040844,-913.680551,0.00023594,7]
[331835385,1720785040854,-913.680551,0.00023594,7]
[331835386,1720785040863,-151.0,0.00023594,7]
[331835388,1720785040872,-151.0,0.00023594,7]
[331835389,1720785040882,-205.619914,0.00023594,7]
[331835390,1720785040891,-168.08001,0.00023594,7]
[331835391,1720785040900,-482.14,0.00023685,2]
[331835392,1720785040909,-165.134278,0.00023685,7]
[331835393,1720785040919,-151.0,0.00023685,7]
[331835394,1720785040928,-151.0,0.00023685,7]
[331835395,1720785040938,-153.275478,0.00023685,7]
[331835396,1720785040947,-151.0,0.00023685,7]
[331835397,1720785040956,-194.727353,0.00023685,7]
[331835398,1720785040965,-151.0,0.00023685,7]
[331835399,1720785040974,-194.727353,0.00023685,7]
[331835400,1720785040984,-151.0,0.00023685,2]
[331835401,1720785040994,-151.0,0.00023685,2]
[331835402,1720785041003,-771.717698,0.00023685,7]
[331835403,1720785041012,-771.717698,0.00023685,7]
[331835404,1720785041022,-151.0,0.00023685,7]
[331835405,1720785041031,-157.41178,0.00023685,7]
[331835406,1720785041042,-151.0,0.00023685,7]
[331835407,1720785041051,-151.0,0.00023685,7]
[331835408,1720785041061,-151.0,0.00023685,7]
[331835409,1720785041070,-706.229037,0.00023685,7]
[331835410,1720785041083,-706.229037,0.00023685,7]
[331835411,1720785041093,-706.229037,0.00023685,7]
[331835412,1720785041102,-706.229037,0.00023685,7]
[331835413,1720785041111,-706.229037,0.00023685,7]
[331835414,1720785041122,-436.127311,0.00023685,7]
[331835415,1720785041130,-436.127311,0.00023685,7]
[331835416,1720785041139,-436.127311,0.00023685,7]
[331835417,1720785041149,-706.229037,0.00023685,7]
[331835418,1720785041158,-706.229037,0.00023685,7]
[331835419,1720785041168,-706.229037,0.00023685,7]
[331835420,1720785041177,-706.229037,0.00023685,7]
[331835421,1720785041287,-706.229037,0.00023685,7]
[331835422,1720785041297,-436.127311,0.00023685,7]
[331835423,1720785041307,-436.127311,0.00023685,7]
[331835424,1720785041316,-436.127311,0.00023685,7]
[331835425,1720785041325,-335.356712,0.00023685,7]
[331835426,1720785041335,-335.356712,0.00023685,7]
[331835427,1720785041344,-335.356712,0.00023685,7]
[331835428,1720785041353,-335.356712,0.00023685,7]
[331835429,1720785041362,-335.356712,0.00023685,7]
[331835430,1720785041372,-210.907925,0.00023685,7]
[331835431,1720785041382,-210.907925,0.00023685,7]
[331835432,1720785041392,-210.907925,0.00023685,7]
[331835433,1720785041401,-210.907925,0.00023685,7]
[331835434,1720785041411,-335.356712,0.00023685,7]
[331835435,1720785041420,-210.907925,0.00023685,7]
[331835436,1720785041430,-335.356712,0.00023685,7]
[331835437,1720785041439,-335.356712,0.00023685,7]
[331835438,1720785041449,-335.356712,0.00023685,7]
[331835439,1720785041458,-335.356712,0.00023685,7]
[331835440,1720785041468,-210.907925,0.00023685,7]
[331835441,1720785041476,-210.907925,0.00023685,7]
[331835442,1720785041486,-151.0,0.00023685,7]
[331835443,1720785041496,-210.907925,0.00023685,7]
[331835444,1720785041506,-151.0,0.00023685,7]
[331835445,1720785041515,-151.0,0.00023685,7]
[331835446,1720785041525,-265.191499,0.00023685,7]
[331835447,1720785041536,-210.907925,0.00023685,7]
[331835448,1720785041545,-210.907925,0.00023685,7]
[331835449,1720785041556,-255.782212,0.00023685,7]
[331835450,1720785041566,-255.782212,0.00023685,7]
[331835451,1720785041576,-255.782212,0.00023685,7]
[331835452,1720785041585,-255.782212,0.00023685,7]
[331835453,1720785041594,-255.782212,0.00023685,7]
[331835454,1720785041604,-255.782212,0.00023685,7]
[331835455,1720785041613,-255.782212,0.00023685,7]
[331835456,1720785041623,-255.782212,0.00023685,7]
[331835457,1720785041634,-255.782212,0.00023685,7]
[331835458,1720785041644,-255.782212,0.00023685,7]
[331835459,1720785041655,-151.0,0.00023685,7]
[331835460,1720785041664,-151.0,0.00023685,7]
[331835461,1720785041673,-151.0,0.00023685,7]
[331835462,1720785041683,-172.762044,0.00023685,7]
[331835463,1720785041693,-151.0,0.00023685,7]
[331835464,1720785041702,-151.0,0.00023685,7]
[331835465,1720785041711,-151.0,0.00023685,7]
[331835466,1720785041722,-151.0,0.00023685,7]
[331835467,1720785041734,-151.0,0.00023685,7]
[331835468,1720785041743,-151.0,0.00023685,7]
[331835469,1720785041752,-186.040463,0.00023685,7]
[331835470,1720785041762,-625.313543,0.00023685,7]
[331835471,1720785041772,-625.313543,0.00023685,7]
[331835472,1720785041783,-625.313543,0.00023685,7]
[331835473,1720785041794,-625.313543,0.00023685,7]
[331835474,1720785041803,-625.313543,0.00023685,7]
[331835475,1720785041814,-625.313543,0.00023685,7]
[331835476,1720785041825,-625.313543,0.00023685,7]
[331835477,1720785041836,-625.313543,0.00023685,7]
[331835478,1720785041847,-625.313543,0.00023685,7]
[331835479,1720785041858,-625.313543,0.00023685,7]
[331835480,1720785041870,-151.0,0.00023685,7]
[331835481,1720785041880,-151.0,0.00023685,7]
[331835482,1720785041891,-151.0,0.00023685,7]
[331835483,1720785041900,-155.661975,0.00023685,7]
[331835484,1720785041910,-667.310438,0.00023685,7]
[331835485,1720785041919,-667.310438,0.00023685,7]
[331835486,1720785041930,-667.310438,0.00023685,7]
[331835487,1720785041940,-667.310438,0.00023685,7]
[331835488,1720785041949,-667.310438,0.00023685,7]
[331835489,1720785041960,-667.310438,0.00023685,7]
[331835490,1720785041972,-667.310438,0.00023685,7]
[331835491,1720785041983,-667.310438,0.00023685,7]
[331835492,1720785041993,-667.310438,0.00023685,7]
[331835493,1720785042004,-667.310438,0.00023685,7]
[331835494,1720785042013,-223.872873,0.00023685,7]
[331835495,1720785042024,-223.872873,0.00023685,7]
[331835496,1720785042033,-223.872873,0.00023685,7]
[331835497,1720785042043,-223.872873,0.00023685,7]
[331835498,1720785042054,-223.872873,0.00023685,7]
[331835499,1720785042065,-223.872873,0.00023685,7]
[331835500,1720785042077,-223.872873,0.00023685,7]
[331835501,1720785042086,-223.872873,0.00023685,7]
[331835502,1720785042097,-223.872873,0.00023685,7]
[331835503,1720785042107,-223.872873,0.00023685,7]
[331835504,1720785042118,-223.872873,0.00023685,7]
[331835505,1720785042129,-223.872873,0.00023685,7]
[331835506,1720785042139,-223.872873,0.00023685,7]
[331835507,1720785042150,-223.872873,0.00023685,7]
[331835508,1720785042163,-223.872873,0.00023685,7]
[331835509,1720785042173,-223.872873,0.00023685,7]
[331835510,1720785042185,-223.872873,0.00023685,7]
[331835511,1720785042195,-223.872864,0.00023685,7]
[331835512,1720785042204,-716.689709,0.00023685,7]
[331835513,1720785042214,-716.689709,0.00023685,7]
[331835514,1720785042224,-716.689709,0.00023685,7]
[331835515,1720785042234,-716.689709,0.00023685,7]
[331835516,1720785042244,-716.689709,0.00023685,7]
[331835517,1720785042253,-716.689709,0.00023685,7]
[331835518,1720785042264,-716.689709,0.00023685,7]
[331835519,1720785042273,-716.689709,0.00023685,7]
[331835520,1720785042283,-716.689709,0.00023685,7]
[331835521,1720785042294,-716.689709,0.00023685,7]
[331835522,1720785042303,-716.689709,0.00023685,7]
[331835523,1720785042313,-716.689709,0.00023685,7]
[331835524,1720785042323,-716.689709,0.00023685,7]
[331835525,1720785042333,-716.689709,0.00023685,7]
[331835526,1720785042343,-716.689709,0.00023685,7]
[331835527,1720785042353,-716.689709,0.00023685,7]
[331835528,1720785042362,-716.689709,0.00023685,7]
[331835529,1720785042372,-716.689705,0.00023685,7]
[331835530,1720785042381,-163.007398,0.00023685,7]
[331835531,1720785042390,-165.583787,0.00023685,7]
[331835532,1720785042400,-913.680551,0.00023685,7]
[331835533,1720785042410,-55.22463234,0.00023685,7]
[331835721,1720786053157,-185.272421,0.00021096,2]
[331835722,1720786053179,-325.790855,0.00021096,2]
[331835723,1720786053201,-166.6666691,0.00021981,2]
[331835724,1720786053222,-161.681817,0.000224,2]
[331835725,1720786053251,-477.9,0.00023675,3]
[331835726,1720786053273,-47474.1822772,0.00023684,3]
[331835727,1720786053295,-500.0,0.00023684,2]
[331835728,1720786053317,-5068.96426898,0.00023685,5]
[331835729,1720786053339,-154.62117811,0.00023685,10]
[331835730,1720786053361,-151.0,0.00023685,7]
[331835731,1720786053382,-151.0,0.00023685,7]
[331835732,1720786053411,-151.0,0.00023685,7]
[331835733,1720786053434,-151.0,0.00023685,7]
[331835734,1720786053457,-169.481129,0.00023685,7]
[331835735,1720786053480,-151.0,0.00023685,7]